fUST/lending_fUST_20250906
["ID","MTS","AMOUNT","RATE_DAILY","PERIOD"]
[383805029,1757123448045,-151.0,0.00014,2]
[383805031,1757123448055,-151.0,0.00014,2]
[383805033,1757123448066,-151.0,0.00014,2]
[383805035,1757123448079,-151.0,0.00014,2]
[383805037,1757123448089,-499.138248,0.00014,2]
[383805039,1757123448099,-499.138248,0.00014,2]
[383805041,1757123448109,-499.138248,0.00014,2]
[383805043,1757123448119,-499.138242,0.00014,2]
[383805045,1757123448132,-151.0,0.00014,2]
[383805047,1757123448142,-205.190994,0.00014,2]
[383805049,1757123448153,-254.952377,0.00014,2]
[383805051,1757123448163,-254.952377,0.00014,2]
[383805053,1757123448174,-254.952377,0.00014,2]
[383805055,1757123448185,-254.952376,0.00014,2]
[383805057,1757123448195,-168.0,0.0001403,2]
[383805060,1757123448206,-168.0,0.00014047,2]
[383805062,1757123448217,-2889.786302,0.00014071,2]
[383805074,1757123448327,-3634.6625852,0.00014085,2]
[383805077,1757123448339,-7950.0454391,0.00014085,2]
[383805079,1757123448348,-151.0,0.000141,2]
[383805080,1757123448359,-151.0,0.000141,2]
[383805083,1757123448368,-151.0,0.000141,2]
[383805085,1757123448378,-168.0,0.00014108,2]
[383805087,1757123448388,-151.0,0.000142,2]
[383805089,1757123448398,-151.0,0.000142,2]
[383805091,1757123448407,-842.6169386,0.00014221,2]
[383805093,1757123448416,-501.00825234,0.00014221,2]
[383805095,1757123448425,-168.0,0.00014231,2]
[383805097,1757123448435,-28655.32606875,0.00014245,2]
[383805099,1757123448444,-157.0,0.00014246,2]
[383805101,1757123448453,-500.0,0.00014246,2]
[383805103,1757123448463,-480.0,0.00014246,2]
[383805105,1757123448473,-480.0,0.00014246,2]
[383805107,1757123448482,-480.0,0.00014246,2]
[383805109,1757123448491,-303.72177744,0.00014246,2]
[383805111,1757123448500,-228.58713119,0.00014246,2]
[383805113,1757123448510,-500.47083141,0.00014246,2]
[383805115,1757123448520,-480.0,0.00014246,2]
[383805117,1757123448529,-480.0,0.00014246,2]
[383805119,1757123448539,-480.0,0.00014246,2]
[383805121,1757123448548,-448.48708282,0.00014246,2]
[383805123,1757123448557,-480.0,0.00014246,2]
[383805125,1757123448567,-480.0,0.00014246,2]
[383805127,1757123448576,-480.0,0.00014246,2]
[383805129,1757123448585,-481.32577392,0.00014246,2]
[383805131,1757123448595,-485.84615404,0.00014246,2]
[383805133,1757123448604,-481.31005437,0.00014246,2]
[383805135,1757123448613,-480.0,0.00014246,2]
[383805137,1757123448622,-480.0,0.00014246,2]
[383805139,1757123448632,-480.0,0.00014246,2]
[383805141,1757123448641,-480.0,0.00014246,2]
[383805143,1757123448650,-480.0,0.00014246,2]
[383805145,1757123448660,-480.0,0.00014246,2]
[383805147,1757123448669,-480.0,0.00014246,2]
[383805149,1757123448678,-485.48905602,0.00014246,2]
[383805151,1757123448688,-480.0,0.00014246,2]
[383805152,1757123448697,-482.97597316,0.00014246,2]
[383805154,1757123448707,-524.41288398,0.00014246,2]
[383805156,1757123448716,-480.0,0.00014246,2]
[383805157,1757123448725,-480.0,0.00014246,2]
[383805159,1757123448734,-485.5863617,0.00014246,2]
[383805161,1757123448744,-485.31899644,0.00014246,2]
[383805163,1757123448753,-483.01652402,0.00014246,2]
[383805165,1757123448763,-480.0,0.00014246,2]
[383805167,1757123448772,-481.86090799,0.00014246,2]
[383805169,1757123448782,-482.33827662,0.00014246,2]
[383805171,1757123448792,-480.0,0.00014246,2]
[383805173,1757123448801,-482.49748996,0.00014246,2]
[383805175,1757123448810,-480.0,0.00014246,2]
[383805177,1757123448819,-496.47208194,0.00014246,2]
[383805179,1757123448828,-480.0,0.00014246,2]
[383805181,1757123448838,-154.272388,0.00014246,2]
[383805183,1757123448848,-174.371751,0.00014246,2]
[383805185,1757123448857,-174.371751,0.00014246,2]
[383805187,1757123448867,-174.371751,0.00014246,2]
[383805189,1757123448876,-151.0,0.00014246,2]
[383805191,1757123448886,-480.0,0.00014246,2]
[383805193,1757123448895,-174.371757,0.00014246,2]
[383805195,1757123448904,-356.31912488,0.00014246,2]
[383805197,1757123448913,-480.0,0.00014246,2]
[383805199,1757123448923,-480.0,0.00014246,2]
[383805201,1757123448933,-481.21160543,0.00014246,2]
[383805203,1757123448942,-480.0,0.00014246,2]
[383805205,1757123448951,-480.0,0.00014246,2]
[383805207,1757123448961,-480.0,0.00014246,2]
[383805209,1757123448971,-151.0,0.00014246,2]
[383805211,1757123448980,-484.67661226,0.00014246,2]
[383805213,1757123448989,-151.0,0.00014246,2]
[383805215,1757123449000,-480.0,0.00014246,2]
[383805217,1757123449009,-480.0,0.00014246,2]
[383805219,1757123449018,-480.0,0.00014246,2]
[383805221,1757123449028,-482.37243226,0.00014246,2]
[383805223,1757123449037,-480.0,0.00014246,2]
[383805225,1757123449047,-480.0,0.00014246,2]
[383805227,1757123449056,-480.0,0.00014246,2]
[383805229,1757123449067,-480.0,0.00014246,2]
[383805231,1757123449079,-487.34737873,0.00014246,2]
[383805233,1757123449089,-480.0,0.00014246,2]
[383805235,1757123449099,-480.0,0.00014246,2]
[383805237,1757123449108,-480.0,0.00014246,2]
[383805239,1757123449119,-485.70337573,0.00014246,2]
[383805241,1757123449128,-480.0,0.00014246,2]
[383805243,1757123449138,-480.0,0.00014246,2]
[383805245,1757123449148,-480.0,0.00014246,2]
[383805247,1757123449158,-480.0,0.00014246,2]
[383805249,1757123449168,-480.0,0.00014246,2]
[383805250,1757123449178,-480.0,0.00014246,2]
[383805252,1757123449188,-480.0,0.00014246,2]
[383805254,1757123449197,-483.88117006,0.00014246,2]
[383805256,1757123449206,-480.0,0.00014246,2]
[383805258,1757123449215,-487.07570667,0.00014246,2]
[383805260,1757123449224,-480.0,0.00014246,2]
[383805262,1757123449234,-480.0,0.00014246,2]
[383805264,1757123449243,-480.0,0.00014246,2]
[383805266,1757123449253,-292.82371864,0.00014246,2]
[383805268,1757123449263,-397.74555341,0.00014246,2]
[383805270,1757123449271,-265.07223414,0.00014246,2]
[383805272,1757123449280,-482.57744752,0.00014246,2]
[383805274,1757123449291,-480.0,0.00014246,2]
[383805276,1757123449301,-480.0,0.00014246,2]
[383805278,1757123449311,-480.0,0.00014246,2]
[383805280,1757123449320,-480.0,0.00014246,2]
[383805282,1757123449330,-480.0,0.00014246,2]
[383805284,1757123449339,-480.0,0.00014246,2]
[383805286,1757123449348,-172.14938165,0.00014246,2]
[383805288,1757123449357,-486.05872859,0.00014246,2]
[383805290,1757123449367,-480.0,0.00014246,2]
[383805292,1757123449376,-489.08888993,0.00014246,2]
[383805294,1757123449385,-480.0,0.00014246,2]
[383805296,1757123449394,-268.16342824,0.00014246,2]
[383805298,1757123449403,-583.71977917,0.00014246,2]
[383805300,1757123449412,-480.0,0.00014246,2]
[383805302,1757123449421,-552.53239379,0.00014246,2]
[383805304,1757123449430,-480.0,0.00014246,2]
[383805306,1757123449439,-480.0,0.00014246,2]
[383805308,1757123449448,-480.0,0.00014246,2]
[383805310,1757123449456,-480.0,0.00014246,2]
[383805312,1757123449466,-480.0,0.00014246,2]
[383805314,1757123449475,-695.29,0.00014246,2]
[383805316,1757123449484,-480.0,0.00014246,2]
[383805318,1757123449493,-4241.64,0.00014246,2]
[383805320,1757123449503,-480.0,0.00014246,2]
[383805321,1757123449512,-480.49,0.00014246,2]
[383805324,1757123449521,-480.0,0.00014246,2]
[383805325,1757123449531,-480.26274953,0.00014246,2]
[383805327,1757123449540,-503.10303543,0.00014246,2]
[383805330,1757123449550,-480.0,0.00014246,2]
[383805332,1757123449559,-598.58437307,0.00014246,2]
[383805334,1757123449569,-480.0,0.00014246,2]
[383805336,1757123449579,-192.89126168,0.00014246,2]
[383805338,1757123449588,-519.59,0.00014246,2]
[383805340,1757123449598,-480.0,0.00014246,2]
[383805342,1757123449607,-480.0,0.00014246,2]
[383805344,1757123449616,-480.0,0.00014246,2]
[383805345,1757123449625,-480.0,0.00014246,2]
[383805347,1757123449634,-483.18138295,0.00014246,2]
[383805349,1757123449643,-480.0,0.00014246,2]
[383805351,1757123449653,-487.57658633,0.00014246,2]
[383805353,1757123449662,-480.0,0.00014246,2]
[383805355,1757123449671,-480.0,0.00014246,2]
[383805357,1757123449680,-480.0,0.00014246,2]
[383805359,1757123449689,-480.0,0.00014246,2]
[383805360,1757123449698,-1295.84,0.00014246,2]
[383805361,1757123449707,-480.0,0.00014246,2]
[383805362,1757123449716,-480.0,0.00014246,2]
[383805363,1757123449725,-1365.22,0.00014246,2]
[383805364,1757123449734,-480.0,0.00014246,2]
[383805365,1757123449743,-480.0,0.00014246,2]
[383805366,1757123449752,-480.0,0.00014246,2]
[383805367,1757123449761,-227.75321013,0.00014246,2]
[383805368,1757123449770,-480.0,0.00014246,2]
[383805369,1757123449779,-480.0,0.00014246,2]
[383805370,1757123449789,-565.9,0.00014246,2]
[383805371,1757123449799,-480.0,0.00014246,2]
[383805372,1757123449808,-162.72878956,0.00014246,2]
[383805373,1757123449817,-480.0,0.00014246,2]
[383805374,1757123449826,-480.0,0.00014246,2]
[383805375,1757123449835,-480.0,0.00014246,2]
[383805376,1757123449844,-480.0,0.00014246,2]
[383805378,1757123449854,-22336.23,0.00014246,2]
[383805379,1757123449863,-480.0,0.00014246,2]
[383805381,1757123449872,-509.65045643,0.00014246,2]
[383805383,1757123449883,-480.0,0.00014246,2]
[383805385,1757123449892,-480.0,0.00014246,2]
[383805387,1757123449901,-480.0,0.00014246,2]
[383805389,1757123449911,-480.0,0.00014246,2]
[383805391,1757123449920,-578.11259814,0.00014246,2]
[383805393,1757123449930,-541.41,0.00014246,2]
[383805396,1757123449941,-480.0,0.00014246,2]
[383805398,1757123449950,-480.0,0.00014246,2]
[383805400,1757123449960,-480.0,0.00014246,2]
[383805402,1757123449969,-480.0,0.00014246,2]
[383805404,1757123449978,-816.39,0.00014246,2]
[383805406,1757123449988,-480.0,0.00014246,2]
[383805408,1757123449997,-480.0,0.00014246,2]
[383805410,1757123450006,-3613.56642969,0.00014246,2]
[383809590,1757123637842,1514.2800362,0.000131,2]
[383809591,1757123657415,263.90169232,0.00027,120]
[383809592,1757123661263,565.7199638,0.000131,2]
[383809593,1757123666631,-1514.2800362,0.00013233,2]
[383809594,1757123666653,-300.0,0.00013472,2]
[383809595,1757123666677,-500.0,0.00013473,2]
[383809596,1757123666699,-500.0,0.00013473,2]
[383809597,1757123666719,-500.0,0.00013473,2]
[383809598,1757123666740,-500.59504642,0.00013473,2]
[383809599,1757123666761,-500.0,0.00013473,2]
[383809600,1757123666784,-500.0,0.00013473,2]
[383809601,1757123666807,-165.7479114,0.00013473,2]
[383809602,1757123666828,-500.0,0.00013473,2]
[383809603,1757123666851,-500.69864277,0.00013473,2]
[383809604,1757123666874,-241.41297041,0.00013496,2]
[383809605,1757123666897,-500.0,0.00013496,2]
[383809606,1757123666921,-500.0,0.00013496,2]
[383809607,1757123666942,-235.39003314,0.00013496,2]
[383809608,1757123666965,-500.0,0.00013496,2]
[383809609,1757123666991,-500.0,0.00013496,2]
[383809610,1757123667014,-500.0,0.00013496,2]
[383809611,1757123667038,-500.0,0.00013496,2]
[383809612,1757123667065,-500.0,0.00013496,2]
[383809613,1757123667089,-500.0,0.00013496,2]
[383809614,1757123667112,-500.0,0.00013496,2]
[383809615,1757123667135,-500.0,0.00013496,2]
[383809616,1757123667159,-393.79536412,0.00013496,2]
[383809617,1757123667183,-553.8662944,0.00013496,2]
[383809618,1757123667206,-208.27655188,0.00013496,2]
[383809619,1757123667228,-322.10299624,0.00013496,2]
[383809620,1757123667252,-248.03020474,0.00013496,2]
[383809621,1757123667421,-500.0,0.00013496,2]
[383809622,1757123667446,-500.0,0.00013496,2]
[383809623,1757123667469,-200.0,0.00013496,2]
[383809624,1757123667491,-85615.80394828,0.00013497,2]
[383809625,1757123719145,666.0,0.00012724,2]
[383809626,1757123750705,1000.0,0.00029016,120]
[383809627,1757123798622,1000.0,0.00029016,60]
[383809628,1757123945514,1000.0,0.00012688,2]
[383809629,1757124159315,402.0,0.00027397,120]
[383809630,1757124187270,1038.76407121,0.0001258,2]
[383809631,1757124187291,6257.90721869,0.0001258,2]
[383809632,1757124286097,248.2545836,0.00012678,2]
[383809966,1757124632179,-1147.41332688,0.00013397,2]
[383810019,1757124632693,-397.40000166,0.00013397,2]
[383810114,1757124638025,-174.9767672,0.00013397,2]
[383810116,1757124638035,-300.0,0.00013472,2]
[383810118,1757124638048,-1200.0,0.00013472,2]
[383810120,1757124638058,-500.0,0.00013473,2]
[383810123,1757124638069,-511.90767812,0.00013473,2]
[383810126,1757124638079,-500.98987879,0.00013473,2]
[383810128,1757124638088,-500.0,0.00013473,2]
[383810130,1757124638098,-500.73139972,0.00013473,2]
[383810132,1757124638108,-500.0,0.00013473,2]
[383810134,1757124638117,-614.32134606,0.00013473,2]
[383810136,1757124638127,-501.02794123,0.00013473,2]
[383810138,1757124638137,-500.0,0.00013473,2]
[383810140,1757124638146,-500.0,0.00013473,2]
[383810142,1757124638155,-500.0,0.00013473,2]
[383810144,1757124638164,-500.0,0.00013473,2]
[383810146,1757124638174,-500.0,0.00013473,2]
[383810147,1757124638183,-500.86449524,0.00013473,2]
[383810149,1757124638193,-445.10038339,0.00013473,2]
[383810151,1757124638203,-500.0,0.00013473,2]
[383810153,1757124638213,-501.67970441,0.00013473,2]
[383810155,1757124638222,-500.0,0.00013473,2]
[383810157,1757124638232,-500.0,0.00013473,2]
[383810159,1757124638242,-284384.19605172,0.00013497,2]
[383810161,1757124638251,-2413.52716496,0.00013497,2]
[383810163,1757124638261,-572.37676885,0.0001352,2]
[383810165,1757124638270,-181.08010149,0.00013533,2]
[383810168,1757124638283,-151.0,0.00013533,2]
[383810169,1757124638293,-151.0,0.00013533,2]
[383810171,1757124638304,-151.0,0.00013533,2]
[383810173,1757124638314,-151.0,0.00013533,2]
[383810175,1757124638324,-151.0,0.00013533,2]
[383810177,1757124638333,-239.55903663,0.00013533,2]
[383810179,1757124638343,-16413.45984803,0.00013573,2]
[383810181,1757124638353,-151.0,0.000136,2]
[383810183,1757124638363,-572.37676885,0.00013644,2]
[383810185,1757124638372,-500.9375673,0.00013673,2]
[383810187,1757124638382,-501.00825234,0.00013673,2]
[383810189,1757124638392,-500.0,0.00013673,2]
[383810191,1757124638402,-500.0,0.00013673,2]
[383810193,1757124638412,-500.0,0.00013673,2]
[383810195,1757124638421,-500.0,0.00013673,2]
[383810197,1757124638431,-501.63573222,0.00013673,2]
[383810199,1757124638441,-500.0,0.00013673,2]
[383810201,1757124638450,-500.2455451,0.00013673,2]
[383810203,1757124638459,-501.36235049,0.00013673,2]
[383810205,1757124638469,-500.51000022,0.00013673,2]
[383810207,1757124638479,-500.0,0.00013673,2]
[383810209,1757124638489,-500.0,0.00013673,2]
[383810211,1757124638502,-500.0,0.00013673,2]
[383810212,1757124638512,-13075.6331372,0.00013684,2]
[383810214,1757124638522,-480.0,0.00013698,2]
[383810215,1757124638531,-480.0,0.00013698,2]
[383810216,1757124638542,-480.0,0.00013698,2]
[383810217,1757124638551,-481.72745752,0.00013698,2]
[383810218,1757124638561,-482.09568626,0.00013698,2]
[383810219,1757124638571,-480.0,0.00013698,2]
[383810220,1757124638580,-480.0,0.00013698,2]
[383810221,1757124638590,-481.29884787,0.00013698,2]
[383810222,1757124638599,-480.0,0.00013698,2]
[383810223,1757124638609,-480.0,0.00013698,2]
[383810224,1757124638618,-480.0,0.00013698,2]
[383810225,1757124638627,-480.0,0.00013698,2]
[383810226,1757124638637,-482.10516984,0.00013698,2]
[383810227,1757124638647,-480.85023598,0.00013698,2]
[383810228,1757124638657,-480.0,0.00013698,2]
[383810229,1757124638666,-412.78007096,0.00013698,2]
[383810230,1757124638674,-481.2656816,0.00013698,2]
[383810231,1757124638683,-480.74911173,0.00013698,2]
[383810232,1757124638692,-480.0,0.00013698,2]
[383810233,1757124638702,-481.8333983,0.00013698,2]
[383810234,1757124638711,-480.0,0.00013698,2]
[383810236,1757124638720,-480.0,0.00013698,2]
[383810237,1757124638729,-483.69683165,0.00013698,2]
[383810238,1757124638738,-480.0,0.00013698,2]
[383810241,1757124638747,-480.0,0.00013698,2]
[383810243,1757124638757,-480.0,0.00013698,2]
[383810245,1757124638766,-480.0,0.00013698,2]
[383810247,1757124638775,-480.92626852,0.00013698,2]
[383810249,1757124638785,-480.0,0.00013698,2]
[383810250,1757124638794,-480.0,0.00013698,2]
[383810253,1757124638803,-482.21196811,0.00013698,2]
[383810254,1757124638814,-482.69025031,0.00013698,2]
[383810256,1757124638823,-480.0,0.00013698,2]
[383810259,1757124638833,-480.0,0.00013698,2]
[383810260,1757124638843,-480.0,0.00013698,2]
[383810263,1757124638853,-480.0,0.00013698,2]
[383810265,1757124638862,-166.6072476,0.00013698,2]
[383810267,1757124638871,-480.0,0.00013698,2]
[383810269,1757124638881,-480.0,0.00013698,2]
[383810271,1757124638891,-480.0,0.00013698,2]
[383810273,1757124638901,-480.0,0.00013698,2]
[383810275,1757124638911,-480.0,0.00013698,2]
[383810277,1757124638921,-483.62581635,0.00013698,2]
[383810279,1757124638931,-508.31326227,0.00013698,2]
[383810281,1757124638939,-481.80626009,0.00013698,2]
[383810283,1757124638949,-480.0,0.00013698,2]
[383810285,1757124638958,-480.0,0.00013698,2]
[383810287,1757124638967,-480.0,0.00013698,2]
[383810289,1757124638977,-480.0,0.00013698,2]
[383810291,1757124638986,-483.36658935,0.00013698,2]
[383810293,1757124638996,-481.17798576,0.00013698,2]
[383810295,1757124639005,-480.0,0.00013698,2]
[383810297,1757124639015,-480.0,0.00013698,2]
[383810299,1757124639024,-481.7021188,0.00013698,2]
[383810301,1757124639034,-480.47354829,0.00013698,2]
[383810303,1757124639046,-482.03835101,0.00013698,2]
[383810305,1757124639055,-480.0,0.00013698,2]
[383810307,1757124639065,-201.93091251,0.00013698,2]
[383810309,1757124639074,-480.0,0.00013698,2]
[383810311,1757124639084,-481.45054273,0.00013698,2]
[383810313,1757124639094,-481.06976967,0.00013698,2]
[383810315,1757124639103,-151.0,0.00013698,2]
[383810317,1757124639112,-480.91483394,0.00013698,2]
[383810319,1757124639121,-481.15374603,0.00013698,2]
[383810321,1757124639130,-483.50936886,0.00013698,2]
[383810323,1757124639141,-517.6330095,0.00013698,2]
[383810325,1757124639151,-481.86954609,0.00013698,2]
[383810327,1757124639161,-480.0,0.00013698,2]
[383810329,1757124639170,-480.0,0.00013698,2]
[383810331,1757124639180,-609.01300727,0.00013698,2]
[383810333,1757124639189,-480.00316821,0.00013698,2]
[383810335,1757124639199,-480.0,0.00013698,2]
[383810337,1757124639208,-484.22909381,0.00013698,2]
[383810339,1757124639217,-480.0,0.00013698,2]
[383810341,1757124639227,-480.0,0.00013698,2]
[383810343,1757124639237,-480.0,0.00013698,2]
[383810345,1757124639246,-480.0,0.00013698,2]
[383810348,1757124639256,-480.0,0.00013698,2]
[383810350,1757124639265,-524.68776467,0.00013698,2]
[383810352,1757124639275,-482.02590004,0.00013698,2]
[383810354,1757124639287,-301.64501856,0.00013698,2]
[383810356,1757124639296,-486.86930627,0.00013698,2]
[383810358,1757124639305,-483.37883145,0.00013698,2]
[383810360,1757124639316,-480.0,0.00013698,2]
[383810362,1757124639325,-480.0,0.00013698,2]
[383810364,1757124639334,-480.9997772,0.00013698,2]
[383810366,1757124639343,-480.0,0.00013698,2]
[383810368,1757124639353,-480.0,0.00013698,2]
[383810370,1757124639362,-480.0,0.00013698,2]
[383810372,1757124639371,-480.0,0.00013698,2]
[383810374,1757124639380,-177.70871752,0.00013698,2]
[383810376,1757124639391,-480.0,0.00013698,2]
[383810378,1757124639401,-482.10836088,0.00013698,2]
[383810380,1757124639410,-480.0,0.00013698,2]
[383810381,1757124639420,-481.61196086,0.00013698,2]
[383810383,1757124639430,-480.86842214,0.00013698,2]
[383810387,1757124639440,-480.0,0.00013698,2]
[383810390,1757124639450,-480.0,0.00013698,2]
[383810393,1757124639458,-480.0,0.00013698,2]
[383810396,1757124639468,-480.0,0.00013698,2]
[383810399,1757124639477,-480.0,0.00013698,2]
[383810402,1757124639487,-480.0,0.00013698,2]
[383810405,1757124639500,-480.0,0.00013698,2]
[383810408,1757124639510,-480.0,0.00013698,2]
[383810411,1757124639520,-480.0,0.00013698,2]
[383810413,1757124639529,-480.0,0.00013698,2]
[383810415,1757124639540,-480.0,0.00013698,2]
[383810417,1757124639550,-480.0,0.00013698,2]
[383810418,1757124639561,-480.0,0.00013698,2]
[383810419,1757124639572,-487.8409849,0.00013698,2]
[383810420,1757124639582,-480.0,0.00013698,2]
[383810421,1757124639591,-483.35416143,0.00013698,2]
[383810423,1757124639601,-481.08497246,0.00013698,2]
[383810425,1757124639611,-480.0,0.00013698,2]
[383810427,1757124639621,-480.0,0.00013698,2]
[383810429,1757124639631,-480.0,0.00013698,2]
[383810431,1757124639641,-480.0,0.00013698,2]
[383810433,1757124639651,-485.1227262,0.00013698,2]
[383810434,1757124639660,-481.53382843,0.00013698,2]
[383810435,1757124639670,-480.0,0.00013698,2]
[383810436,1757124639679,-480.0,0.00013698,2]
[383810437,1757124639688,-189.471751,0.00013698,2]
[383810438,1757124639698,-484.64834256,0.00013698,2]
[383810439,1757124639707,-480.0,0.00013698,2]
[383810440,1757124639717,-151.0,0.00013698,2]
[383810441,1757124639726,-189.471751,0.00013698,2]
[383810442,1757124639735,-480.0,0.00013698,2]
[383810443,1757124639745,-480.0,0.00013698,2]
[383810444,1757124639754,-480.0,0.00013698,2]
[383810445,1757124639763,-480.0,0.00013698,2]
[383810446,1757124639773,-189.471751,0.00013698,2]
[383810447,1757124639782,-151.0,0.00013698,2]
[383810448,1757124639792,-189.471751,0.00013698,2]
[383810449,1757124639802,-151.0,0.00013698,2]
[383810450,1757124639812,-480.0,0.00013698,2]
[383810451,1757124639823,-484.7757488,0.00013698,2]
[383810452,1757124639834,-482.03621985,0.00013698,2]
[383810453,1757124639845,-151.870715,0.00013698,2]
[383810454,1757124639856,-480.0,0.00013698,2]
[383810455,1757124639866,-553.00190724,0.00013698,2]
[383810456,1757124639877,-480.0,0.00013698,2]
[383810457,1757124639887,-481.4007942,0.00013698,2]
[383810458,1757124639897,-505.37246912,0.00013698,2]
[383810459,1757124639907,-481.04001931,0.00013698,2]
[383810460,1757124639918,-480.0,0.00013698,2]
[383810461,1757124639928,-480.0,0.00013698,2]
[383810462,1757124639938,-480.0,0.00013698,2]
[383810463,1757124639947,-481.03052062,0.00013698,2]
[383810464,1757124639957,-483.34455077,0.00013698,2]
[383810465,1757124639967,-151.0,0.00013698,2]
[383810466,1757124639976,-484.06476104,0.00013698,2]
[383810467,1757124639986,-231.02744279,0.00013698,2]
[383810468,1757124639996,-480.0,0.00013698,2]
[383810469,1757124640007,-476.13047586,0.00013698,2]
[383810470,1757124640017,-480.0,0.00013698,2]
[383810471,1757124640027,-578.38190579,0.00013698,2]
[383810472,1757124640040,-480.0,0.00013698,2]
[383810473,1757124640052,-480.0,0.00013698,2]
[383810474,1757124640063,-153.876622,0.00013698,2]
[383810475,1757124640074,-480.0,0.00013698,2]
[383810476,1757124640084,-480.0,0.00013698,2]
[383810477,1757124640094,-480.0,0.00013698,2]
[383810478,1757124640112,-480.0,0.00013698,2]
[383810479,1757124640123,-480.0,0.00013698,2]
[383810480,1757124640133,-484.11960889,0.00013698,2]
[383810481,1757124640143,-480.0,0.00013698,2]
[383810482,1757124640152,-480.0,0.00013698,2]
[383810483,1757124640161,-482.20014706,0.00013698,2]
[383810484,1757124640171,-483.34758954,0.00013698,2]
[383810485,1757124640182,-480.0,0.00013698,2]
[383810486,1757124640192,-481.3065895,0.00013698,2]
[383810487,1757124640202,-480.0,0.00013698,2]
[383810488,1757124640212,-480.0,0.00013698,2]
[383810489,1757124640222,-480.0,0.00013698,2]
[383810490,1757124640231,-480.0,0.00013698,2]
[383810491,1757124640241,-480.0,0.00013698,2]
[383810492,1757124640250,-480.0,0.00013698,2]
[383810493,1757124640260,-480.0,0.00013698,2]
[383810494,1757124640271,-485.25880517,0.00013698,2]
[383810495,1757124640281,-480.0,0.00013698,2]
[383810496,1757124640291,-480.0,0.00013698,2]
[383810497,1757124640300,-480.0,0.00013698,2]
[383810498,1757124640311,-461.38620994,0.00013698,2]
[383810499,1757124640321,-487.60649724,0.00013698,2]
[383810500,1757124640331,-617.1359325,0.00013698,2]
[383810501,1757124640341,-480.0,0.00013698,2]
[383810502,1757124640351,-490.40076421,0.00013698,2]
[383810503,1757124640362,-236.86474853,0.00013698,2]
[383810504,1757124640372,-483.40365127,0.00013698,2]
[383810505,1757124640382,-480.0,0.00013698,2]
[383810506,1757124640393,-480.0,0.00013698,2]
[383810507,1757124640402,-480.0,0.00013698,2]
[383810508,1757124640412,-480.0,0.00013698,2]
[383810509,1757124640568,-480.0,0.00013698,2]
[383810510,1757124640578,-482.28794651,0.00013698,2]
[383810511,1757124640588,-480.0,0.00013698,2]
[383810512,1757124640598,-480.0,0.00013698,2]
[383810513,1757124640608,-461.15873559,0.00013698,2]
[383810514,1757124640618,-480.0,0.00013698,2]
[383810515,1757124640627,-480.0,0.00013698,2]
[383810516,1757124640636,-480.0,0.00013698,2]
[383810517,1757124640646,-480.0,0.00013698,2]
[383810518,1757124640656,-480.0,0.00013698,2]
[383810519,1757124640665,-480.0,0.00013698,2]
[383810520,1757124640675,-483.61787333,0.00013698,2]
[383810521,1757124640689,-480.0,0.00013698,2]
[383810522,1757124640699,-480.0,0.00013698,2]
[383810523,1757124640709,-481.9527949,0.00013698,2]
[383810524,1757124640719,-481.68688507,0.00013698,2]